Workbook

Sheet Sheet3
A1: 环科推免综合成绩公示
A2: 学号 | B2: 姓名 | C2: 前三年必修课 加权平均成绩 | D2: 前三年综合测评成绩 | G2: 前三年必修课优良率 | H2: 综合排名总成绩（总分100即70%部分+30%部分）（保留两位小数） | I2: 英语四级成绩 | J2: 备注
D3: 大一 | E3: 大二 | F3: 大三
A4: 2012010182 | B4: 王浩 | C4: 87.46 | D4: 92.49 | E4: 98.54 | F4: 102.43 | G4: 97.87% | H4: =0.7*C4+0.3*(D4+E4+F4)/3 -> 90.57 | I4: 636
A5: 2012010191 | B5: 许丽媛 | C5: 88.40 | D5: 88.78 | E5: 92.77 | F5: 96.63 | G5: 91.49% | H5: =0.7*C5+0.3*(D5+E5+F5)/3 -> 89.70 | I5: 541
A6: 2012010215 | B6: 周鹤 | C6: 88.87 | D6: 89.02 | E6: 92.02 | F6: 87.12 | G6: 95.74% | H6: =0.7*C6+0.3*(D6+E6+F6)/3 -> 89.03 | I6: 581 | J6: 放弃
A7: 2012010167 | B7: 王涵 | C7: 87.08 | D7: 92.15 | E7: 91.57 | F7: 93.23 | G7: 89.36% | H7: =0.7*C7+0.3*(D7+E7+F7)/3 -> 88.65 | I7: 508
A8: 2012010161 | B8: 崔冰婕 | C8: 87.34 | D8: 89.69 | E8: 91.29 | F8: 91.19 | G8: 97.87% | H8: =0.7*C8+0.3*(D8+E8+F8)/3 -> 88.35 | I8: 592
A9: 2012010168 | B9: 王珂 | C9: 84.95 | D9: 87.20 | E9: 90.35 | F9: 95.91 | G9: 82.98% | H9: =0.7*C9+0.3*(D9+E9+F9)/3 -> 86.81 | I9: 454
A10: 2012010160 | B10: 曹日星 | C10: 85.85 | D10: 90.70 | E10: 89.81 | F10: 85.88 | G10: 93.62% | H10: =0.7*C10+0.3*(D10+E10+F10)/3 -> 86.73 | I10: 539 | J10: 放弃
A11: 2012010210 | B11: 杨越 | C11: 84.50 | D11: 89.11 | E11: 90.40 | F11: 88.82 | G11: 85.11% | H11: =0.7*C11+0.3*(D11+E11+F11)/3 -> 85.98 | I11: 529
A12: 2012010195 | B12: 张鑫铖 | C12: 84.25 | D12: 85.00 | E12: 91.63 | F12: 92.84 | G12: 78.72% | H12: =0.7*C12+0.3*(D12+E12+F12)/3 -> 85.92 | I12: 464
A13: 2012010206 | B13: 徐春鹏 | C13: 84.53 | D13: 85.47 | E13: 88.76 | F13: 86.30 | G13: 80.85% | H13: =0.7*C13+0.3*(D13+E13+F13)/3 -> 85.23 | I13: 569
A14: 2012010194 | B14: 张欣宇 | C14: 82.95 | D14: 83.62 | E14: 87.27 | F14: 90.82 | G14: 76.60% | H14: =0.7*C14+0.3*(D14+E14+F14)/3 -> 84.23 | I14: 464
A15: 2012010214 | B15: 张宏宇 | C15: 83.30 | D15: 86.83 | E15: 83.57 | F15: 85.87 | G15: 70.21% | H15: =0.7*C15+0.3*(D15+E15+F15)/3 -> 83.94 | I15: 467
A16: 2012010177 | B16: 刘拓 | C16: 81.26 | D16: 84.70 | E16: 87.59 | F16: 83.83 | G16: 74.47% | H16: =0.7*C16+0.3*(D16+E16+F16)/3 -> 82.49 | I16: 555
A17: 2012010164 | B17: 江亮 | C17: 80.63 | D17: 88.55 | E17: 83.13 | F17: 88.04 | G17: 70.21% | H17: =0.7*C17+0.3*(D17+E17+F17)/3 -> 82.41 | I17: 518
A18: 2012010207 | B18: 杨冰 | C18: 81.09 | D18: 77.91 | E18: 87.22 | F18: 89.74 | G18: 72.34% | H18: =0.7*C18+0.3*(D18+E18+F18)/3 -> 82.25 | I18: 475
A19: 2012010196 | B19: 邹洪媛 | C19: 79.84 | D19: 83.59 | E19: 90.56 | F19: 88.90 | G19: 72.34% | H19: =0.7*C19+0.3*(D19+E19+F19)/3 -> 82.19 | I19: 482
A20: 2012010190 | B20: 孟召伟 | C20: 79.57 | D20: 82.48 | E20: 85.89 | F20: 88.18 | G20: 68.09% | H20: =0.7*C20+0.3*(D20+E20+F20)/3 -> 81.36 | I20: 441
A21: 2012010178 | B21: 刘铮 | C21: 79.84 | D21: 86.57 | E21: 83.92 | F21: 81.97 | G21: 63.83% | H21: =0.7*C21+0.3*(D21+E21+F21)/3 -> 81.13 | I21: 426
A22: 2012010197 | B22: 陈飞阳 | C22: 78.93 | D22: 83.19 | E22: 86.13 | F22: 81.99 | G22: 65.96% | H22: =0.7*C22+0.3*(D22+E22+F22)/3 -> 80.38 | I22: 443
A23: 2012010179 | B23: 马小龙 | C23: 77.95 | D23: 81.62 | E23: 88.52 | F23: 86.54 | G23: 68.09% | H23: =0.7*C23+0.3*(D23+E23+F23)/3 -> 80.23 | I23: 514
A24: 2012010187 | B24: 朱丰茂 | C24: 77.47 | D24: 85.12 | E24: 78.81 | F24: 84.45 | G24: 61.70% | H24: =0.7*C24+0.3*(D24+E24+F24)/3 -> 79.06 | I24: 495
A25: 2012010183 | B25: 王旭 | C25: 77.19 | D25: 79.42 | E25: 83.38 | F25: 84.83 | G25: 55.32% | H25: =0.7*C25+0.3*(D25+E25+F25)/3 -> 78.80 | I25: 544
A26: 2012010198 | B26: 陈凤怀 | C26: 75.50 | D26: 82.14 | E26: 82.48 | F26: 80.98 | G26: 56.52% | H26: =0.7*C26+0.3*(D26+E26+F26)/3 -> 77.41 | I26: 422
A27: 2012010175 | B27: 李泓成 | C27: 75.34 | D27: 82.91 | E27: 82.76 | F27: 77.48 | G27: 53.19% | H27: =0.7*C27+0.3*(D27+E27+F27)/3 -> 77.05 | I27: 462
A28: 2012010192 | B28: 闫瑞景 | C28: 75.17 | D28: 76.93 | E28: 77.79 | F28: 89.02 | G28: 57.45% | H28: =0.7*C28+0.3*(D28+E28+F28)/3 -> 77.00 | I28: 522
A29: 2012010205 | B29: 熊驷骏 | C29: 74.85 | D29: 79.44 | E29: 82.84 | F29: 80.46 | G29: 51.06% | H29: =0.7*C29+0.3*(D29+E29+F29)/3 -> 76.67 | I29: 460
A30: 2012010208 | B30: 杨兴荣 | C30: 73.72 | D30: 80.30 | E30: 87.28 | F30: 82.46 | G30: 55.32% | H30: =0.7*C30+0.3*(D30+E30+F30)/3 -> 76.61 | I30: 430
A31: 2012010176 | B31: 刘全军 | C31: 73.96 | D31: 80.57 | E31: 79.73 | F31: 79.71 | G31: 44.68% | H31: =0.7*C31+0.3*(D31+E31+F31)/3 -> 75.78 | I31: 427
A32: 2012010199 | B32: 代祥杰 | C32: 73.66 | D32: 79.37 | E32: 81.61 | F32: 80.29 | G32: 51.06% | H32: =0.7*C32+0.3*(D32+E32+F32)/3 -> 75.69 | I32: 462
A33: 2012010213 | B33: 袁炎 | C33: 71.08 | D33: 80.20 | E33: 77.83 | F33: 77.86 | G33: 42.55% | H33: =0.7*C33+0.3*(D33+E33+F33)/3 -> 73.34 | I33: 368
A34: 2012010209 | B34: 杨永森 | C34: 70.02 | D34: 75.79 | E34: 79.90 | F34: 78.77 | G34: 38.30% | H34: =0.7*C34+0.3*(D34+E34+F34)/3 -> 72.46 | I34: 413
A35: 2012010204 | B35: 罗时栋 | C35: 69.92 | D35: 74.70 | E35: 77.49 | F35: 78.84 | G35: 34.04% | H35: =0.7*C35+0.3*(D35+E35+F35)/3 -> 72.05 | I35: 426
A36: 2012010193 | B36: 叶栩彤 | C36: 69.69 | D36: 69.70 | E36: 74.85 | F36: 78.04 | G36: 39.13% | H36: =0.7*C36+0.3*(D36+E36+F36)/3 -> 71.04 | I36: 426
